bitfinex/quotes_ETHUSD_20241105
["timestamp","ask_amount","ask_price","bid_price","bid_amount"]
[1730800381419,4.1002,2438.9,2438.8,0.99092571]
[1730800383200,5.00851875,2438.9,2438.8,0.44871116]
[1730800383888,5.00851875,2438.9,2438.8,0.1098305]
[1730800384089,5.00851875,2438.9,2438.8,0.44870973]
[1730800384319,5.00851875,2438.9,2438.8,0.33887923]
[1730800384476,5.00851875,2438.9,2438.8,0.44870973]
[1730800385222,5.92956622,2438.9,2438.8,0.1098305]
[1730800385374,8.92956622,2438.9,2438.8,0.1098305]
[1730800385570,4.93018,2438.4,2438.0,0.54222227]
[1730800385774,4.93018,2438.4,2438.1,0.88111368]
[1730800386010,0.829,2438.4,2438.2,0.88111368]
[1730800386217,4.93005,2438.4,2438.3,0.88111368]
[1730800386426,0.829,2438.4,2438.3,0.98917184]
[1730800386925,4.93004,2438.4,2438.3,0.98917184]
[1730800387281,0.01,2438.7,2438.3,0.98917184]
[1730800387282,4.10072,2438.6,2438.3,0.98917184]
[1730800387478,4.10072,2438.6,2438.4,0.88111368]
[1730800387674,4.91805,2438.7,2438.5,0.88078567]
[1730800387675,4.90796,2438.7,2438.5,0.88078567]
[1730800387875,4.90796,2438.7,2438.6,0.88074054]
[1730800388116,4.90796,2438.7,2438.6,0.88071215]
[1730800388510,4.90796,2438.7,2438.6,0.98885925]
[1730800388925,4.90796,2438.7,2438.6,0.44688043]
[1730800390085,4.90796,2438.7,2438.6,0.1081471]
[1730800390287,4.10056,2438.7,2438.6,0.44690147]
[1730800390481,4.86076,2438.7,2438.6,0.33875437]
[1730800390783,4.86076,2438.7,2438.6,0.44690147]
[1730800391517,4.86076,2438.7,2438.6,0.44690021]
[1730800395324,4.86076,2438.7,2438.6,0.44687233]
[1730800395509,4.86076,2438.7,2438.6,0.78559517]
[1730800396954,4.86076,2438.7,2438.6,1.327551]
[1730800397443,4.86076,2438.7,2438.6,0.78559517]
[1730800399240,4.86076,2438.7,2438.6,1.32758852]
[1730800399421,4.86076,2438.7,2438.6,1.32760146]
[1730800399751,4.86076,2438.7,2438.6,1.32761243]
[1730800399915,4.10041,2438.8,2438.6,1.32761243]
[1730800400118,4.10041,2438.8,2438.7,0.8807401]
[1730800400430,4.10041,2438.8,2438.7,0.98889609]
[1730800406194,4.10041,2438.8,2438.7,0.10815599]
[1730800406498,4.10041,2438.8,2438.7,0.88071997]
[1730800406683,4.10041,2438.8,2438.7,0.98877813]
[1730800409704,4.10041,2438.8,2438.7,0.10805816]
[1730800410072,4.10041,2438.8,2438.7,0.88080763]
[1730800410294,4.10021,2438.9,2438.7,0.98876795]
[1730800410467,4.10021,2438.9,2438.7,0.10796032]
[1730800410808,1.70420787,2439.0,2438.8,0.33876532]
[1730800410977,2.14107207,2439.1,2438.7,0.56786032]
[1730800410978,4.09994,2439.1,2438.9,0.88077243]
[1730800411179,4.09994,2439.1,2439.0,0.33876532]
[1730800411481,4.09994,2439.1,2439.0,0.44673453]
[1730800411680,4.09994,2439.1,2439.0,0.98867763]
[1730800412899,4.09983,2439.2,2439.0,0.98867763]
[1730800413086,4.09983,2439.2,2439.1,0.88050919]
[1730800413293,4.09983,2439.2,2439.1,0.33876532]
[1730800413665,4.09983,2439.2,2439.1,0.44673453]
[1730800416499,4.09983,2439.2,2439.1,0.98808229]
[1730800417222,4.09983,2439.2,2439.1,0.44673453]
[1730800419120,6.04714626,2439.2,2439.1,0.44673453]
[1730800419329,6.05714626,2439.2,2439.1,0.10796921]
[1730800419611,4.1005,2438.8,2438.5,0.16731944]
[1730800419821,4.10055,2438.7,2438.6,0.87955637]
[1730800419975,4.10004,2439.0,2438.6,0.98716103]
[1730800420178,4.10025,2438.9,2438.7,0.87955637]
[1730800420496,4.10025,2438.9,2438.8,0.98693872]
[1730800420916,4.09981,2439.2,2438.8,1.44683872]
[1730800421125,4.09994,2439.1,2438.8,1.44683872]
[1730800421418,4.09994,2439.1,2438.9,0.87955637]
[1730800421625,4.09994,2439.1,2439.0,0.87955637]
[1730800421776,4.09994,2439.1,2439.0,0.9871521]
[1730800431925,4.09994,2439.1,2439.0,0.98747852]
[1730800434329,8.19898,2439.4,2439.0,1.75962108]
[1730800434483,0.7705,2439.5,2439.0,1.75962108]
[1730800434484,4.09953,2439.3,2439.0,1.87702752]
[1730800434688,4.0997,2439.2,2439.0,1.87702752]
[1730800435400,4.0997,2439.2,2439.0,1.20006456]
[1730800435598,4.09987,2439.1,2439.0,0.98763525]
[1730800435824,4.09987,2439.1,2439.0,0.10759573]
[1730800436099,4.09987,2439.1,2438.8,0.56414439]
[1730800436299,4.09987,2439.1,2439.0,0.10735567]
[1730800436491,4.09987,2439.1,2438.8,0.56414439]
[1730800436692,4.09987,2439.1,2438.9,0.10735567]
[1730800437436,4.10004,2439.0,2438.9,0.10735567]
[1730800437929,4.10004,2439.0,2438.9,0.10728455]
[1730800438130,4.10004,2439.0,2438.7,0.4599]
[1730800438333,4.10004,2439.0,2438.9,0.6491141]
[1730800438542,4.10004,2439.0,2438.9,0.8804696]
[1730800438836,4.10004,2439.0,2438.9,0.98775415]
[1730800441131,4.10004,2439.0,2438.9,0.10728455]
[1730800441333,4.10004,2439.0,2438.9,0.98840537]
[1730800441531,4.10004,2439.0,2438.9,0.88112082]
[1730800441739,4.10004,2439.0,2438.9,0.98840537]
[1730800443223,4.18208747,2439.0,2438.9,0.98840537]
[1730800444459,4.18208747,2439.0,2438.9,0.10728455]
[1730800444657,4.18208747,2439.0,2438.9,0.88100023]
[1730800445027,4.18208747,2439.0,2438.9,0.98839148]
[1730800445230,4.10004,2439.0,2438.9,0.98839148]
[1730800445472,4.09988,2439.1,2438.9,1.66602036]
[1730800445668,4.09988,2439.1,2439.0,0.88100023]
[1730800446033,4.09988,2439.1,2439.0,0.98858707]
[1730800448059,4.09988,2439.1,2439.0,0.98851613]
[1730800448972,4.09973,2439.2,2439.0,0.98851613]
[1730800449276,6.57529787,2439.4,2439.1,1.55853946]
[1730800449277,4.86106,2439.4,2439.1,1.55853946]
[1730800449478,4.86106,2439.4,2439.2,0.88092929]
[1730800449645,4.86106,2439.4,2439.1,0.31911578]
[1730800449646,4.10946,2439.4,2439.3,0.98851613]
[1730800451512,4.10946,2439.4,2439.3,0.10758684]
[1730800451714,4.10946,2439.4,2439.3,0.98822269]
[1730800451900,4.10946,2439.4,2439.3,0.88063585]
[1730800452407,4.10946,2439.4,2439.3,0.98822269]
[1730800452620,6.10025826,2439.4,2439.3,0.44629083]
[1730800452975,7.80446613,2439.4,2439.3,0.33870399]
[1730800455214,4.09998,2439.1,2438.8,0.4599]
[1730800455378,4.09998,2439.1,2438.9,1.55805688]
[1730800455574,4.09998,2439.1,2439.0,0.54192525]
[1730800455810,4.09998,2439.1,2439.0,0.8806257]
[1730800456020,4.89988,2439.1,2439.0,0.98788357]
[1730800457121,5.98025979,2439.1,2439.0,0.98788357]
[1730800457282,7.76651513,2439.1,2439.0,0.44595832]
[1730800457476,7.76651513,2439.1,2439.0,0.33870045]
[1730800457995,4.10054,2438.7,2438.6,0.67743832]
[1730800458193,4.10054,2438.7,2438.4,0.4599]
[1730800458194,4.10082,2438.6,2438.5,0.16753182]
[1730800458520,4.10082,2438.6,2438.5,1.55763013]
[1730800458717,4.10054,2438.7,2438.5,1.72513535]
[1730800458878,4.10054,2438.7,2438.4,0.4599]
[1730800459217,4.10054,2438.7,2438.5,1.55762114]
[1730800459380,4.10071,2438.6,2438.4,1.27120637]
[1730800459577,4.10071,2438.6,2438.5,1.55732957]
[1730800461931,4.19275747,2438.6,2438.5,0.8802244]
[1730800462242,4.94855747,2438.6,2438.5,0.33854574]
[1730800462398,4.10113,2438.4,2438.1,0.4599]
[1730800462598,4.10113,2438.4,2438.2,0.54137924]
[1730800462599,8.2023,2438.4,2438.2,0.54137924]
[1730800462848,4.10113,2438.4,2438.3,0.87973829]
[1730800465843,0.7658,2438.6,2438.4,0.4599]
[1730800465844,4.10072,2438.6,2438.4,0.4599]
[1730800466154,4.10072,2438.6,2438.5,0.33812045]
[1730800466639,4.92241,2438.6,2438.5,0.87909941]
[1730800466803,4.92241,2438.6,2438.5,0.33812045]
[1730800468422,4.10111,2438.4,2438.3,0.54098499]
[1730800468627,4.10111,2438.4,2438.3,0.87909745]
[1730800469763,4.10111,2438.4,2438.2,1.13613807]
[1730800469764,4.10121,2438.3,2438.2,0.4599]
[1730800469948,4.10121,2438.3,2438.2,1.33894407]
[1730800470263,4.10121,2438.3,2438.2,1.57716688]
[1730800471557,4.10105,2438.4,2438.2,1.57716688]
[1730800471721,4.10105,2438.4,2438.3,0.87904407]
[1730800472147,4.10105,2438.4,2438.3,0.98324245]
[1730800473039,4.10062,2438.7,2438.3,2.34084245]
[1730800473263,4.10062,2438.7,2438.4,1.24154207]
[1730800473481,4.10062,2438.7,2438.5,0.33798668]
[1730800473761,4.10062,2438.7,2438.6,0.44218506]
[1730800474116,4.10062,2438.7,2438.6,0.98299738]
[1730800474355,4.10062,2438.7,2438.6,0.44218506]
[1730800474872,4.10062,2438.7,2438.6,0.98300164]
[1730800475023,4.10062,2438.7,2438.6,1.20545601]
[1730800476064,4.10062,2438.7,2438.6,0.66463943]
[1730800476221,4.10062,2438.7,2438.6,0.44218506]
[1730800477067,4.10062,2438.7,2438.6,0.10419838]
[1730800477368,4.10088,2438.5,2438.4,0.4599]
[1730800477574,4.10088,2438.5,2438.4,1.33883382]
[1730800478432,4.10074,2438.6,2438.4,1.33883382]
[1730800478641,4.10074,2438.6,2438.5,0.33804955]
[1730800480273,4.10074,2438.6,2438.5,0.87921284]
[1730800480490,4.10074,2438.6,2438.5,0.33804955]
[1730800481283,4.10074,2438.6,2438.5,0.87922238]
[1730800484353,4.10074,2438.6,2438.5,1.55670756]
[1730800484655,4.10074,2438.6,2438.5,1.78089996]
[1730800487398,4.10074,2438.6,2438.5,1.88393956]
[1730800487697,4.91424,2438.6,2438.5,0.98226198]
[1730800487872,4.91424,2438.6,2438.5,0.1030396]
[1730800488087,4.99625747,2438.6,2438.5,0.8809288]
[1730800488300,0.89554747,2438.6,2438.0,0.82699862]
[1730800488511,0.89554747,2438.6,2438.1,0.33882432]
[1730800488800,0.89554747,2438.6,2438.2,0.98413486]
[1730800488801,4.10132,2438.3,2438.2,0.98413486]
[1730800492589,4.10105,2438.4,2438.2,0.98413486]
[1730800492804,4.10105,2438.4,2438.3,0.88094408]
[1730800493020,4.10105,2438.4,2438.3,0.98428608]
[1730800494130,4.10072,2438.6,2438.3,3.04417696]
[1730800494349,4.10072,2438.6,2438.4,0.88094408]
[1730800494630,4.10072,2438.6,2438.5,0.98423271]
[1730800495135,4.10057,2438.7,2438.5,0.98423271]
[1730800495338,4.10057,2438.7,2438.5,0.40770099]
[1730800495494,4.10057,2438.7,2438.6,0.880901]
[1730800495839,4.10057,2438.7,2438.6,0.98412736]
[1730800497134,4.10051,2438.8,2438.6,0.98412736]
[1730800497431,4.10051,2438.8,2438.7,0.880901]
[1730800497634,4.10051,2438.8,2438.7,0.98405621]
[1730800497935,5.271261,2438.8,2438.7,0.44196118]
[1730800498291,5.271261,2438.8,2438.7,0.10315521]
[1730800498496,5.271261,2438.8,2438.7,0.44188008]
[1730800498766,5.271261,2438.8,2438.7,0.33872487]
[1730800498892,5.35330847,2438.8,2438.7,0.44189784]
[1730800500409,4.94325747,2438.8,2438.7,0.44189784]
[1730800500716,4.10051,2438.8,2438.7,0.98385445]
[1730800501708,4.10051,2438.8,2438.7,0.10317297]
[1730800502016,4.10032,2438.9,2438.7,0.98385478]
[1730800502342,4.10032,2438.9,2438.8,0.88068181]
[1730800502650,4.10032,2438.9,2438.8,0.98390815]
[1730800503345,6.62108163,2439.2,2438.8,0.98390815]
[1730800503505,0.809,2439.2,2438.9,0.88068181]
[1730800503704,4.09972,2439.2,2439.0,1.34052209]
[1730800503916,4.09972,2439.2,2439.1,0.33872166]
[1730800503917,4.09973,2439.2,2439.1,0.33872166]
[1730800504449,4.09973,2439.2,2439.1,0.44178791]
[1730800505313,4.09973,2439.2,2439.1,0.44136488]
[1730800505505,4.09973,2439.2,2439.1,0.77966409]
[1730800508565,4.09973,2439.2,2439.1,0.44136546]
[1730800508887,7.16050647,2439.2,2439.1,0.10306625]
[1730800509052,8.8727381,2439.2,2439.1,0.10306625]
[1730800509378,4.10107,2438.4,2438.2,1.69366989]
[1730800509540,4.1008,2438.6,2438.2,0.79389241]
[1730800509740,4.1009,2438.5,2438.3,0.3381226]
[1730800509941,4.1009,2438.5,2438.4,0.87916278]
[1730800511473,4.1009,2438.5,2438.4,0.87917969]
[1730800513444,4.09981,2439.2,2439.0,0.33813973]
[1730800513784,4.09981,2439.2,2438.9,0.4599]
[1730800514079,4.09981,2439.2,2439.0,0.33807732]
[1730800514287,4.10045,2438.8,2438.2,6.44447317]
[1730800514582,4.10045,2438.8,2438.5,1.04596971]
[1730800514743,4.10045,2438.8,2438.6,0.87897519]
[1730800514945,4.10045,2438.8,2438.7,0.87897519]
[1730800515177,4.10045,2438.8,2438.7,0.33806528]
[1730800515361,4.10045,2438.8,2438.7,0.87897519]
[1730800515572,4.10045,2438.8,2438.7,0.33806528]
[1730800515752,4.10045,2438.8,2438.7,0.87897519]
[1730800516144,4.1003,2438.9,2438.7,0.87897519]
[1730800516350,4.1003,2438.9,2438.8,0.33805056]
[1730800516549,4.1003,2438.9,2438.8,0.33805057]
[1730800516775,4.1003,2438.9,2438.8,0.67610172]
[1730800517179,4.1003,2438.9,2438.8,0.77188024]
[1730800517949,4.1003,2438.9,2438.8,0.77187692]
[1730800518596,4.1003,2438.9,2438.8,0.43382635]
[1730800520267,4.1003,2438.9,2438.8,0.43389086]
[1730800520671,4.1003,2438.9,2438.8,0.09577852]
[1730800520854,4.1003,2438.9,2438.8,0.43395054]
[1730800521751,5.90499547,2438.9,2438.8,0.09577852]
[1730800522000,5.90499547,2438.9,2438.3,0.16697635]
[1730800522001,4.10079,2438.6,2438.2,0.08202088]
[1730800522289,4.1009,2438.5,2438.3,0.87948376]
[1730800522494,4.1009,2438.5,2438.4,0.87948376]
[1730800523060,4.1009,2438.5,2438.4,0.97215708]
[1730800524082,4.1009,2438.5,2438.4,0.97234432]
[1730800527375,4.1009,2438.5,2438.4,0.43100621]
[1730800527702,4.1009,2438.5,2438.4,0.09267332]
[1730800527871,4.1009,2438.5,2438.4,0.4309773]
[1730800528209,4.99404747,2438.5,2438.4,0.4309773]
[1730800528506,5.82521647,2438.5,2438.4,0.09267332]
[1730800528658,4.10155,2438.1,2438.0,0.36709862]
[1730800528861,4.10155,2438.1,2438.0,0.70540603]
[1730800529106,4.10155,2438.1,2438.0,0.79847957]
[1730800529319,4.18359747,2438.1,2438.0,0.79847957]
[1730800529664,4.96439747,2438.1,2438.0,0.36709862]
[1730800529899,4.96439747,2438.1,2438.0,0.46061682]
[1730800535097,4.88235,2438.1,2438.0,0.46061682]
[1730800535269,6.28389847,2438.1,2438.0,0.46061682]
[1730800535790,6.28389847,2438.1,2438.0,0.36709862]
[1730800538910,6.29389847,2438.1,2438.0,0.36709862]
[1730800541328,4.98439747,2438.1,2438.0,0.36709862]
[1730800541941,4.98439747,2438.1,2438.0,0.45817037]
[1730800544381,8.13560229,2438.1,2438.0,0.45817037]
[1730800544641,4.10256,2437.5,2437.1,0.3374376]
[1730800544802,4.10289,2437.4,2437.2,0.3374376]
[1730800545008,4.10289,2437.4,2437.2,0.08955585]
[1730800545203,4.10289,2437.4,2437.0,0.4599]
[1730800545539,4.10256,2437.5,2437.1,0.33743344]
[1730800545540,4.1029,2437.3,2437.1,0.33743344]
[1730800545756,4.1029,2437.3,2437.0,0.4599]
[1730800545924,4.1029,2437.3,2437.1,0.68341752]
[1730800546129,4.1029,2437.3,2437.2,0.33742752]
[1730800547323,4.1029,2437.3,2437.2,0.42719696]
[1730800551602,4.1029,2437.3,2437.2,0.08976944]
[1730800552392,4.10275,2437.4,2437.2,0.08976944]
[1730800552698,4.1029,2437.3,2437.2,0.08976944]
[1730800553069,4.1029,2437.3,2437.2,0.42751834]
[1730800553384,4.1029,2437.3,2437.2,0.42756881]
[1730800554294,4.1029,2437.3,2437.2,0.96805327]
[1730800555067,0.841,2437.6,2437.2,0.96805327]
[1730800555068,4.1027,2437.5,2437.2,0.96805327]
[1730800555392,4.1027,2437.5,2437.3,1.33818383]
[1730800555603,4.10236,2437.7,2437.4,0.96859619]
[1730800555835,4.10236,2437.7,2437.5,0.87828383]
[1730800555998,4.1022,2437.8,2437.6,0.33779937]
[1730800556204,4.1022,2437.8,2437.7,0.33779937]
[1730800556514,4.1022,2437.8,2437.7,0.42806722]
[1730800558344,4.1022,2437.8,2437.7,0.09026785]
[1730800558534,8.21391,2437.9,2437.7,0.97014423]
[1730800558707,4.10205,2437.8,2437.7,0.09026785]
[1730800558901,4.10205,2437.8,2437.7,0.97015635]
[1730800563757,4.10205,2437.8,2437.7,0.09026785]
[1730800563960,4.10205,2437.8,2437.7,0.97047225]
[1730800566657,4.10191,2437.9,2437.7,0.97047225]
[1730800566855,4.10181,2438.0,2437.8,0.8802044]
[1730800567069,4.10205,2437.8,2437.7,0.09026785]
[1730800567285,4.10205,2437.8,2437.7,0.35501679]
[1730800567434,4.10205,2437.8,2437.7,1.23537305]
[1730800570265,4.10189,2437.9,2437.7,1.23537305]
[1730800570462,8.20353,2438.0,2437.8,0.88035626]
[1730800570637,4.10172,2438.0,2437.9,0.88035626]
[1730800570946,4.10172,2438.0,2437.7,0.35501679]
[1730800571142,4.10172,2438.0,2437.9,0.54166165]
[1730800571376,4.10172,2438.0,2437.9,0.88019676]
[1730800572230,4.10172,2438.0,2437.9,0.33853511]
[1730800572670,4.10172,2438.0,2437.9,0.88012317]
[1730800573340,4.10172,2438.0,2437.9,0.33853511]
[1730800574786,4.10172,2438.0,2437.9,0.33845942]
[1730800576677,4.10172,2438.0,2437.9,0.87999237]
[1730800577074,4.10172,2438.0,2437.9,0.33845942]
[1730800577233,4.10172,2438.0,2437.9,0.42814876]
[1730800577938,4.10172,2438.0,2437.9,0.96968844]
[1730800578680,4.10172,2438.0,2437.9,0.9697331]
[1730800582009,4.10172,2438.0,2437.9,0.4281656]
[1730800582313,0.7748,2437.6,2437.4,0.16705316]
[1730800582608,4.10256,2437.5,2437.4,0.16705316]
[1730800582905,4.10256,2437.5,2437.4,1.04753067]
[1730800582906,4.18460747,2437.5,2437.4,1.04753067]
[1730800583220,5.00410747,2437.5,2437.4,1.04753067]
[1730800583505,5.91129022,2437.5,2437.4,0.33866602]
[1730800586404,5.91129022,2437.5,2436.9,0.62696902]
[1730800586405,4.10317,2437.2,2436.9,0.62696902]
[1730800586602,4.09671064,2437.2,2437.0,0.54163749]
[1730800586836,4.09671064,2437.2,2437.1,0.8801575]
[1730800588105,4.09671064,2437.2,2437.1,0.33852001]
[1730800588106,4.89181064,2437.2,2437.1,0.33852001]
[1730800588334,4.10357,2436.9,2436.8,0.54154638]
[1730800588649,0.88714747,2437.2,2436.9,0.4599]
[1730800588650,4.10316,2437.2,2436.9,0.4599]
[1730800588828,4.10324,2437.1,2437.0,0.3383312]
[1730800589310,4.10316,2437.2,2437.0,0.3383312]
[1730800589522,8.20632,2437.2,2437.1,0.3383312]
[1730800589825,8.20631,2437.2,2436.9,0.4599]
[1730800590031,4.10315,2437.2,2437.0,0.33820948]
[1730800590242,4.10315,2437.2,2436.9,0.4599]
[1730800590243,4.10306,2437.2,2437.1,0.33820948]
[1730800590910,4.10299,2437.3,2437.1,0.33820948]
[1730800591115,4.10299,2437.3,2436.9,1.00104064]
[1730800591316,4.10299,2437.3,2437.0,0.84862487]
[1730800591617,4.10276,2437.4,2437.1,0.87928945]
[1730800591618,8.20563,2437.4,2437.1,0.87928945]
[1730800591818,4.1029,2437.3,2437.2,0.33814881]
[1730800592344,4.1029,2437.3,2437.2,0.42290604]
[1730800593510,4.1029,2437.3,2437.2,0.42283834]
[1730800595323,4.11258,2437.5,2437.2,0.42283834]
[1730800595521,4.10275,2437.4,2437.2,0.08475723]
[1730800595730,4.11258,2437.5,2437.2,0.08475723]
[1730800595731,4.1029,2437.3,2437.2,0.08475723]
[1730800595933,4.10309,2437.2,2437.0,1.05141129]
[1730800596159,4.10309,2437.2,2437.1,0.3380416]
[1730800597124,4.1029,2437.3,2437.1,0.3380416]
[1730800597329,4.1029,2437.3,2437.0,0.51047606]
[1730800597668,4.1029,2437.3,2437.1,0.3380237]
[1730800597822,4.1029,2437.3,2437.1,0.33801792]
[1730800598164,4.1029,2437.3,2437.2,0.33801792]
[1730800600247,4.9323,2437.3,2437.2,0.33801792]
[1730800600563,4.9423,2437.3,2437.2,0.33801792]
[1730800600750,4.10313,2437.2,2436.9,0.54083413]
[1730800600927,4.10313,2437.2,2436.9,0.4599]
[1730800601126,4.10313,2437.2,2437.0,1.34349728]
[1730800601326,4.10313,2437.2,2437.1,0.33804701]
[1730800601581,4.18517747,2437.2,2437.1,0.33804701]
[1730800601885,4.1034,2437.0,2436.8,0.54088068]
[1730800602035,4.1034,2437.0,2436.9,0.33809897]
[1730800603567,4.1034,2437.0,2436.9,0.42279386]
[1730800604699,4.1034,2437.0,2436.9,0.42284273]
[1730800606460,4.1034,2437.0,2436.9,0.96388473]
[1730800606663,4.1034,2437.0,2436.9,0.42284273]
[1730800607084,4.1034,2437.0,2436.9,0.96388473]
[1730800607299,4.10309,2437.2,2436.9,0.96388473]
[1730800607300,8.2063,2437.2,2436.9,0.96388473]
[1730800607482,8.2063,2437.2,2437.0,0.33814784]
[1730800607681,8.2063,2437.2,2437.1,0.33814784]
[1730800608058,8.2063,2437.2,2437.1,0.42284273]
[1730800608260,8.2063,2437.2,2437.1,0.08469489]
[1730800608690,4.10349,2437.0,2436.7,0.54145817]
[1730800608906,4.10349,2437.0,2436.8,0.8798697]
[1730800609205,4.10349,2437.0,2436.9,0.33841153]
[1730800609381,4.10349,2437.0,2436.9,0.88007752]
[1730800611875,4.10349,2437.0,2436.6,4.56397]
[1730800612188,4.10349,2437.0,2436.7,2.18390999]
[1730800612395,4.10349,2437.0,2436.8,0.8811558]
[1730800612590,4.10349,2437.0,2436.9,0.8811558]
[1730800615387,4.10349,2437.0,2436.9,0.88150888]
[1730800618217,4.88249,2437.0,2436.9,0.88150888]
[1730800618578,4.88249,2437.0,2436.9,0.88157755]
[1730800619475,4.88249,2437.0,2436.9,0.54248442]
[1730800620195,4.88249,2437.0,2436.9,0.88153376]
[1730800621919,4.10314,2437.2,2436.9,1.34143376]
[1730800622120,4.10314,2437.2,2436.9,0.4599]
[1730800622318,4.10314,2437.2,2437.0,0.08456849]
[1730800623141,4.18518747,2437.2,2437.0,0.08456849]
[1730800623347,4.10314,2437.2,2437.0,0.08456849]
[1730800623514,4.18518747,2437.2,2437.0,0.08456849]
[1730800623992,4.10323,2437.1,2437.0,0.08456849]
[1730800626127,4.10323,2437.1,2437.0,0.96626922]
[1730800631827,4.10323,2437.1,2437.0,1.13359832]
[1730800633241,4.10323,2437.1,2437.0,1.13419918]
[1730800633753,4.9266,2437.4,2437.0,2.15041227]
[1730800634051,4.9266,2437.4,2437.1,2.22204688]
[1730800634257,4.9266,2437.4,2437.2,1.04963069]
[1730800634461,4.9266,2437.4,2437.3,0.8822978]
[1730800634917,5.00864747,2437.4,2437.3,0.96691081]
[1730800637025,5.00864747,2437.4,2437.3,0.96659425]
[1730800640159,5.00864747,2437.4,2437.3,0.96630218]
[1730800643643,5.00864747,2437.4,2437.3,0.96629552]
[1730800644883,5.00864747,2437.4,2437.3,0.42371956]
[1730800646070,5.00864747,2437.4,2437.3,0.96632018]
[1730800646683,4.1028,2437.4,2437.3,0.96632018]
[1730800646980,2.53961914,2437.7,2437.3,0.96632018]
[1730800646981,4.1024,2437.6,2437.3,1.13366337]
[1730800647285,5.81194914,2437.7,2437.4,0.88170717]
[1730800647601,5.81194914,2437.7,2437.5,1.6586084]
[1730800647884,5.81194914,2437.7,2437.6,0.88170717]
[1730800648460,5.81194914,2437.7,2437.6,0.96613319]
[1730800648785,5.81194914,2437.7,2437.6,0.42353257]
[1730800649081,5.81194914,2437.7,2437.6,0.96583087]
[1730800650279,5.81194914,2437.7,2437.6,0.42353257]
[1730800650459,4.10223,2437.7,2437.6,0.42353257]
[1730800650866,4.10223,2437.7,2437.6,0.08442602]
[1730800651193,4.10223,2437.7,2437.6,0.4251115]
[1730800653256,4.18412747,2437.8,2437.6,0.4251115]
[1730800653457,4.18412747,2437.8,2437.7,0.34068548]
[1730800653965,4.18412747,2437.8,2437.7,0.4251115]
[1730800654548,4.18412747,2437.8,2437.7,0.42495791]
[1730800658192,4.18412747,2437.8,2437.7,0.42489185]
[1730800660184,4.10208,2437.8,2437.7,0.42489185]
[1730800660711,4.18412747,2437.8,2437.7,0.42489185]
[1730800661900,4.18412747,2437.8,2437.7,0.42494124]
[1730800663565,4.90042,2437.9,2437.7,0.42494124]
[1730800663566,4.10192,2437.9,2437.7,0.42494124]
[1730800663766,4.10192,2437.9,2437.8,0.34051522]
[1730800664406,4.10192,2437.9,2437.8,0.42454956]
[1730800664709,4.10192,2437.9,2437.8,0.34051522]
[1730800665069,4.10192,2437.9,2437.8,0.42454956]
[1730800665377,4.10192,2437.9,2437.8,0.08403434]
[1730800665593,4.10192,2437.9,2437.8,0.34048916]
[1730800665807,4.10192,2437.9,2437.8,0.4245235]
[1730800669068,4.10192,2437.9,2437.8,0.08403434]
[1730800669406,4.10192,2437.9,2437.8,0.3404847]
[1730800669707,4.10192,2437.9,2437.8,0.42436771]
[1730800670612,8.20356,2438.0,2437.8,0.42436771]
[1730800670809,8.20356,2438.0,2437.9,0.3404847]
[1730800671184,8.20356,2438.0,2437.9,0.42436771]
[1730800671497,4.10175,2438.0,2437.9,0.42436771]
[1730800672794,4.10175,2438.0,2437.9,0.42445888]
[1730800675565,4.18379747,2438.0,2437.9,0.42445888]
[1730800676479,4.18379747,2438.0,2437.9,0.96989419]
[1730800676679,4.18379747,2438.0,2437.9,0.08388301]
[1730800676894,4.18379747,2438.0,2437.9,0.42477517]
[1730800679353,4.18379747,2438.0,2437.9,0.97021898]
[1730800680035,5.87806322,2438.0,2437.9,0.42477517]
[1730800680387,4.88449,2437.6,2437.5,0.54544738]
[1730800680545,4.96653747,2437.6,2437.5,0.88638263]
[1730800682381,4.96653747,2437.6,2437.5,0.97010542]
[1730800684557,4.18443747,2437.6,2437.5,0.97010542]
[1730800684956,0.08204747,2437.6,2437.5,0.97010542]
[1730800685281,4.10226,2437.7,2437.5,0.97010542]
[1730800685457,4.10226,2437.7,2437.6,0.88638263]
[1730800685853,4.10226,2437.7,2437.6,0.97023894]
[1730800686182,4.18430747,2437.7,2437.6,0.97023894]
[1730800686484,4.18430747,2437.7,2437.6,0.96996773]
[1730800686787,4.18430747,2437.7,2437.6,0.96994909]
[1730800691689,4.11207,2437.8,2437.6,0.96994909]
[1730800691983,4.11207,2437.8,2437.7,0.88609278]
[1730800692193,4.11207,2437.8,2437.7,0.96995798]
[1730800692358,4.19411747,2437.8,2437.7,0.96995798]
[1730800693885,4.1019,2437.9,2437.7,0.96993636]
[1730800694196,4.18394747,2437.9,2437.8,0.34079458]
[1730800694497,4.18394747,2437.9,2437.8,0.34079569]
[1730800694678,4.18394747,2437.9,2437.8,0.96993824]
[1730800697705,4.18394747,2437.9,2437.8,0.96991857]
[1730800698681,4.1019,2437.9,2437.8,0.96991857]
[1730800699308,4.1019,2437.9,2437.8,0.42464419]
[1730800699508,4.1019,2437.9,2437.8,0.96989582]
[1730800699915,4.19378747,2438.0,2437.8,0.96989582]
[1730800700110,4.18378747,2438.0,2437.9,0.34077899]
[1730800700426,4.19360747,2438.1,2437.9,0.96980327]
[1730800700600,4.19360747,2438.1,2438.0,0.34077899]
[1730800700796,4.18360747,2438.1,2438.0,0.34077899]
[1730800701028,4.18360747,2438.1,2438.0,0.42457298]
[1730800701029,0.08204747,2438.1,2438.0,0.42457298]
[1730800701237,4.10124,2438.3,2438.0,0.96968739]
[1730800701526,4.10124,2438.3,2438.1,0.65982131]
[1730800701727,4.18328747,2438.3,2438.2,0.34068643]
[1730800702023,4.18328747,2438.3,2438.2,0.42442702]
[1730800702407,0.08204747,2438.3,2438.2,0.42442702]
[1730800702605,4.10116,2438.4,2438.2,0.42442702]
[1730800702950,4.10116,2438.4,2438.3,0.34068643]
[1730800703317,4.18320747,2438.4,2438.3,0.42383969]
[1730800706609,4.18320747,2438.4,2438.3,0.08315326]
[1730800707006,4.18320747,2438.4,2438.3,0.34030779]
[1730800707206,4.18320747,2438.4,2438.3,0.42346105]
[1730800707434,4.18320747,2438.4,2438.3,0.08315326]
[1730800707848,4.18320747,2438.4,2438.1,0.4599]
[1730800708154,4.10127,2438.3,2438.2,0.34024624]
[1730800709056,4.10127,2438.3,2438.2,0.34019657]
[1730800709969,0.08204747,2438.3,2438.2,0.34019657]
[1730800710345,8.20219,2438.4,2438.2,0.34019657]
[1730800710678,4.10105,2438.4,2438.1,0.4599]